fUST/lending_fUST_20250608
["ID","MTS","AMOUNT","RATE_DAILY","PERIOD"]
[365005719,1749394241403,-430.0,0.00019178,2]
[365005720,1749394241414,-440.0,0.00019178,2]
[365005721,1749394241424,-350.0,0.00019178,2]
[365005722,1749394241435,-430.0,0.00019178,2]
[365005723,1749394241444,-430.0,0.00019178,2]
[365005724,1749394241454,-219.32670508,0.00019215,2]
[365005725,1749394241464,-219.32670508,0.00019352,2]
[365005726,1749394241473,-500.0,0.00019451,2]
[365005727,1749394241483,-430.0,0.00019452,2]
[365005728,1749394241493,-430.0,0.00019452,2]
[365005729,1749394241503,-392.16107037,0.00019452,2]
[365005730,1749394241512,-247.095064,0.00019452,2]
[365005731,1749394241522,-440.0,0.00019452,2]
[365005732,1749394241531,-440.0,0.00019452,2]
[365005733,1749394241541,-440.0,0.00019452,2]
[365005734,1749394241552,-440.0,0.00019452,2]
[365005735,1749394241562,-432.16805472,0.00019452,2]
[365005736,1749394241572,-440.0,0.00019452,2]
[365005737,1749394241582,-432.50966734,0.00019452,2]
[365005738,1749394241591,-433.03324262,0.00019452,2]
[365005739,1749394241601,-440.0,0.00019452,2]
[365005740,1749394241611,-384.75865071,0.00019452,2]
[365005741,1749394241622,-432.78407016,0.00019452,2]
[365005742,1749394241634,-440.0,0.00019452,2]
[365005743,1749394241644,-440.0,0.00019452,2]
[365005744,1749394241654,-440.0,0.00019452,2]
[365005745,1749394241664,-440.0,0.00019452,2]
[365005746,1749394241674,-431.90287361,0.00019452,2]
[365005747,1749394241685,-430.0,0.00019452,2]
[365005748,1749394241695,-440.0,0.00019452,2]
[365005749,1749394241706,-440.0,0.00019452,2]
[365005750,1749394241719,-440.0,0.00019452,2]
[365005751,1749394241729,-440.0,0.00019452,2]
[365005752,1749394241739,-440.0,0.00019452,2]
[365005753,1749394241748,-558.76350185,0.00019452,2]
[365005754,1749394241758,-408.78370305,0.00019452,2]
[365005755,1749394241768,-430.48647356,0.00019452,2]
[365005756,1749394241779,-440.0,0.00019452,2]
[365005757,1749394241788,-440.0,0.00019452,2]
[365005758,1749394241797,-440.0,0.00019452,2]
[365005759,1749394241807,-440.0,0.00019452,2]
[365005760,1749394241816,-440.0,0.00019452,2]
[365005761,1749394241825,-433.46052354,0.00019452,2]
[365005762,1749394241835,-492.06816551,0.00019452,2]
[365005763,1749394241845,-420.0,0.00019452,2]
[365005764,1749394241855,-430.0,0.00019452,2]
[365005765,1749394241864,-420.0,0.00019452,2]
[365005766,1749394241874,-434.95814676,0.00019452,2]
[365005767,1749394241884,-430.84202799,0.00019452,2]
[365005768,1749394241893,-430.96682637,0.00019452,2]
[365005769,1749394241903,-440.0,0.00019452,2]
[365005770,1749394241912,-440.0,0.00019452,2]
[365005771,1749394241921,-430.0,0.00019452,2]
[365005772,1749394241931,-440.0,0.00019452,2]
[365005773,1749394241940,-440.0,0.00019452,2]
[365005774,1749394241950,-440.0,0.00019452,2]
[365005775,1749394241959,-440.0,0.00019452,2]
[365005776,1749394241970,-440.0,0.00019452,2]
[365005777,1749394241980,-559.6748547,0.00019452,2]
[365005778,1749394241990,-440.0,0.00019452,2]
[365005779,1749394241999,-440.0,0.00019452,2]
[365005780,1749394242009,-440.0,0.00019452,2]
[365005781,1749394242018,-440.0,0.00019452,2]
[365005782,1749394242028,-413.5252943,0.00019452,2]
[365005783,1749394242038,-440.0,0.00019452,2]
[365005784,1749394242048,-440.0,0.00019452,2]
[365005785,1749394242058,-440.0,0.00019452,2]
[365005786,1749394242068,-440.0,0.00019452,2]
[365005787,1749394242078,-440.0,0.00019452,2]
[365005788,1749394242088,-420.0,0.00019452,2]
[365005789,1749394242098,-430.0,0.00019452,2]
[365005790,1749394242107,-420.0,0.00019452,2]
[365005791,1749394242119,-479.32629688,0.00019452,2]
[365005792,1749394242130,-440.0,0.00019452,2]
[365005793,1749394242139,-440.0,0.00019452,2]
[365005794,1749394242152,-420.0,0.00019452,2]
[365005795,1749394242164,-440.0,0.00019452,2]
[365005796,1749394242174,-420.0,0.00019452,2]
[365005797,1749394242184,-440.0,0.00019452,2]
[365005798,1749394242194,-440.0,0.00019452,2]
[365005799,1749394242204,-380.0,0.00019452,2]
[365005800,1749394242215,-440.0,0.00019452,2]
[365005801,1749394242226,-420.0,0.00019452,2]
[365005802,1749394242237,-425.52486214,0.00019452,2]
[365005803,1749394242249,-440.0,0.00019452,2]
[365005804,1749394242259,-440.0,0.00019452,2]
[365005805,1749394242269,-538.75053903,0.00019452,2]
[365005806,1749394242278,-440.0,0.00019452,2]
[365005807,1749394242287,-440.0,0.00019452,2]
[365005808,1749394242296,-440.0,0.00019452,2]
[365005809,1749394242306,-420.0,0.00019452,2]
[365005810,1749394242316,-500.0,0.00019452,2]
[365005811,1749394242325,-440.0,0.00019452,2]
[365005812,1749394242335,-440.0,0.00019452,2]
[365005813,1749394242344,-440.0,0.00019452,2]
[365005814,1749394242355,-440.0,0.00019452,2]
[365005815,1749394242365,-440.0,0.00019452,2]
[365005816,1749394242374,-388.65651627,0.00019452,2]
[365005817,1749394242384,-440.0,0.00019452,2]
[365005818,1749394242394,-440.0,0.00019452,2]
[365005819,1749394242407,-422.68959887,0.00019452,2]
[365005820,1749394242417,-440.0,0.00019452,2]
[365005821,1749394242428,-440.0,0.00019452,2]
[365005822,1749394242438,-420.0,0.00019452,2]
[365005823,1749394242448,-440.0,0.00019452,2]
[365005824,1749394242458,-420.0,0.00019452,2]
[365005825,1749394242468,-440.0,0.00019452,2]
[365005826,1749394242478,-420.0,0.00019452,2]
[365005827,1749394242487,-440.0,0.00019452,2]
[365005828,1749394242497,-548.10418213,0.00019452,2]
[365005829,1749394242507,-440.0,0.00019452,2]
[365005830,1749394242516,-420.0,0.00019452,2]
[365005831,1749394242526,-276.53535668,0.00019452,2]
[365005832,1749394242535,-440.0,0.00019452,2]
[365005833,1749394242545,-285.52867336,0.00019452,2]
[365005834,1749394242554,-440.0,0.00019452,2]
[365005835,1749394242564,-440.0,0.00019452,2]
[365005836,1749394242574,-445.52562561,0.00019452,2]
[365005837,1749394242583,-444.12357598,0.00019452,2]
[365005838,1749394242594,-430.0,0.00019452,2]
[365005839,1749394242603,-440.0,0.00019452,2]
[365005840,1749394242614,-440.0,0.00019452,2]
[365005841,1749394242625,-420.0,0.00019452,2]
[365005842,1749394242635,-440.0,0.00019452,2]
[365005843,1749394242644,-430.0,0.00019452,2]
[365005848,1749394242655,-440.0,0.00019452,2]
[365005851,1749394242750,-440.0,0.00019452,2]
[365005852,1749394242761,-440.0,0.00019452,2]
[365005853,1749394242771,-336.97082694,0.00019452,2]
[365005854,1749394242781,-440.0,0.00019452,2]
[365005855,1749394242790,-440.0,0.00019452,2]
[365005856,1749394242802,-451.13908045,0.00019452,2]
[365005858,1749394242811,-440.0,0.00019452,2]
[365005859,1749394242822,-440.0,0.00019452,2]
[365005860,1749394242831,-440.0,0.00019452,2]
[365005861,1749394242841,-440.0,0.00019452,2]
[365005862,1749394242852,-440.0,0.00019452,2]
[365005863,1749394242863,-440.0,0.00019452,2]
[365005864,1749394242872,-438.39040511,0.00019452,2]
[365005865,1749394242882,-440.0,0.00019452,2]
[365005866,1749394242892,-440.0,0.00019452,2]
[365005867,1749394242902,-269.04152307,0.00019452,2]
[365005868,1749394242913,-430.0,0.00019452,2]
[365005869,1749394242923,-420.0,0.00019452,2]
[365005870,1749394242933,-263.27911492,0.00019452,2]
[365005871,1749394242946,-440.0,0.00019452,2]
[365005872,1749394242956,-278.0,0.00019452,2]
[365005873,1749394242966,-430.0,0.00019452,2]
[365005874,1749394242976,-440.0,0.00019452,2]
[365005875,1749394242986,-432.33709243,0.00019452,2]
[365005876,1749394242996,-440.0,0.00019452,2]
[365005877,1749394243006,-440.0,0.00019452,2]
[365005878,1749394243016,-430.0,0.00019452,2]
[365005879,1749394243025,-420.0,0.00019452,2]
[365005880,1749394243034,-430.0,0.00019452,2]
[365005881,1749394243044,-440.0,0.00019452,2]
[365005882,1749394243053,-430.0,0.00019452,2]
[365005883,1749394243063,-440.0,0.00019452,2]
[365005884,1749394243072,-440.0,0.00019452,2]
[365005886,1749394243082,-392.05553249,0.00019452,2]
[365005889,1749394243091,-430.0,0.00019452,2]
[365005890,1749394243101,-440.0,0.00019452,2]
[365005891,1749394243111,-420.0,0.00019452,2]
[365005892,1749394243122,-440.0,0.00019452,2]
[365005893,1749394243131,-410.0,0.00019452,2]
[365005894,1749394243141,-430.0,0.00019452,2]
[365005895,1749394243152,-440.0,0.00019452,2]
[365005896,1749394243163,-440.0,0.00019452,2]
[365005897,1749394243177,-440.0,0.00019452,2]
[365005898,1749394243187,-440.0,0.00019452,2]
[365005899,1749394243196,-440.0,0.00019452,2]
[365005900,1749394243206,-440.0,0.00019452,2]
[365005901,1749394243215,-430.0,0.00019452,2]
[365005902,1749394243225,-440.0,0.00019452,2]
[365005903,1749394243235,-446.23958207,0.00019452,2]
[365005904,1749394243245,-392.54168944,0.00019452,2]
[365005906,1749394243255,-440.0,0.00019452,2]
[365005907,1749394243265,-420.0,0.00019452,2]
[365005908,1749394243274,-461.59058151,0.00019452,2]
[365005909,1749394243283,-440.0,0.00019452,2]
[365005910,1749394243293,-440.0,0.00019452,2]
[365005911,1749394243303,-430.0,0.00019452,2]
[365005912,1749394243313,-420.0,0.00019452,2]
[365005913,1749394243322,-420.0,0.00019452,2]
[365005914,1749394243332,-420.0,0.00019452,2]
[365005915,1749394243342,-440.0,0.00019452,2]
[365005916,1749394243352,-424.18593435,0.00019452,2]
[365005917,1749394243361,-440.0,0.00019452,2]
[365005918,1749394243371,-440.0,0.00019452,2]
[365005919,1749394243381,-447.99699983,0.00019452,2]
[365005920,1749394243391,-420.0,0.00019452,2]
[365005921,1749394243401,-382.09651185,0.00019452,2]
[365005922,1749394243410,-420.0,0.00019452,2]
[365005923,1749394243420,-420.0,0.00019452,2]
[365005924,1749394243430,-440.0,0.00019452,2]
[365005925,1749394243439,-440.0,0.00019452,2]
[365005926,1749394243450,-422.85568984,0.00019452,2]
[365005927,1749394243459,-423.1227896,0.00019452,2]
[365005928,1749394243469,-440.0,0.00019452,2]
[365005929,1749394243478,-390.0,0.00019452,2]
[365005930,1749394243488,-440.0,0.00019452,2]
[365005931,1749394243498,-397.71041272,0.00019452,2]
[365005932,1749394243508,-420.0,0.00019452,2]
[365005933,1749394243518,-431.59622751,0.00019452,2]
[365005934,1749394243528,-430.0,0.00019452,2]
[365005935,1749394243538,-420.0,0.00019452,2]
[365005936,1749394243548,-420.0,0.00019452,2]
[365005937,1749394243559,-430.0,0.00019452,2]
[365005938,1749394243568,-440.0,0.00019452,2]
[365005939,1749394243579,-440.0,0.00019452,2]
[365005940,1749394243589,-420.0,0.00019452,2]
[365005941,1749394243598,-324.90065667,0.00019452,2]
[365005942,1749394243608,-440.0,0.00019452,2]
[365005943,1749394243618,-440.0,0.00019452,2]
[365005944,1749394243628,-440.0,0.00019452,2]
[365005945,1749394243638,-440.75962182,0.00019452,2]
[365005946,1749394243648,-430.0,0.00019452,2]
[365005947,1749394243658,-400.0,0.00019452,2]
[365005948,1749394243667,-440.0,0.00019452,2]
[365005949,1749394243677,-440.0,0.00019452,2]
[365005950,1749394243687,-183.91951072,0.00019452,2]
[365005951,1749394243698,-440.0,0.00019452,2]
[365005952,1749394243708,-440.0,0.00019452,2]
[365005953,1749394243718,-440.0,0.00019452,2]
[365005954,1749394243728,-430.0,0.00019452,2]
[365005955,1749394243739,-440.0,0.00019452,2]
[365005956,1749394243748,-440.0,0.00019452,2]
[365005957,1749394243758,-440.0,0.00019452,2]
[365005958,1749394243768,-430.0,0.00019452,2]
[365005959,1749394243777,-497.14,0.00019452,2]
[365005960,1749394243788,-401.76600262,0.00019452,2]
[365005961,1749394243798,-440.0,0.00019452,2]
[365005962,1749394243809,-411.25242609,0.00019452,2]
[365005963,1749394243818,-440.0,0.00019452,2]
[365005964,1749394243828,-420.0,0.00019452,2]
[365005965,1749394243837,-430.0,0.00019452,2]
[365005966,1749394243847,-440.0,0.00019452,2]
[365005967,1749394243857,-449.94098578,0.00019452,2]
[365005968,1749394243867,-420.0,0.00019452,2]
[365005969,1749394243877,-430.0,0.00019452,2]
[365005970,1749394243886,-440.0,0.00019452,2]
[365005971,1749394243896,-397.39966698,0.00019452,2]
[365005972,1749394243905,-440.0,0.00019452,2]
[365005973,1749394243916,-440.0,0.00019452,2]
[365005974,1749394243926,-440.0,0.00019452,2]
[365005975,1749394243936,-440.0,0.00019452,2]
[365005976,1749394243946,-430.0,0.00019452,2]
[365005977,1749394243955,-440.0,0.00019452,2]
[365005978,1749394243967,-430.0,0.00019452,2]
[365005979,1749394243976,-440.0,0.00019452,2]
[365005980,1749394243986,-440.0,0.00019452,2]
[365005981,1749394243996,-440.0,0.00019452,2]
[365005982,1749394244005,-484.08,0.00019452,2]
[365005983,1749394244015,-403.92269372,0.00019452,2]
[365005984,1749394244026,-440.0,0.00019452,2]
[365005985,1749394244036,-440.0,0.00019452,2]
[365005986,1749394244047,-440.0,0.00019452,2]
[365005987,1749394244058,-440.0,0.00019452,2]
[365005988,1749394244068,-440.0,0.00019452,2]
[365005989,1749394244078,-440.0,0.00019452,2]
[365005990,1749394244087,-410.0,0.00019452,2]
[365005991,1749394244097,-430.0,0.00019452,2]
[365005992,1749394244107,-551.36,0.00019452,2]
[365005993,1749394244119,-440.0,0.00019452,2]
[365005994,1749394244130,-423.02023611,0.00019452,2]
[365005995,1749394244143,-440.0,0.00019452,2]
[365005996,1749394244153,-440.0,0.00019452,2]
[365005997,1749394244164,-440.0,0.00019452,2]
[365005998,1749394244177,-440.0,0.00019452,2]
[365005999,1749394244186,-440.0,0.00019452,2]
[365006000,1749394244197,-563.74403596,0.00019452,2]
[365006001,1749394244210,-472.93184677,0.00019452,2]
[365006002,1749394244219,-440.0,0.00019452,2]
[365006003,1749394244229,-430.0,0.00019452,2]
[365006004,1749394244239,-440.0,0.00019452,2]
[365006005,1749394244251,-277.04832856,0.00019452,2]
[365006006,1749394244262,-440.0,0.00019452,2]
[365006007,1749394244272,-421.18964997,0.00019452,2]
[365006008,1749394244282,-420.0,0.00019452,2]
[365006009,1749394244291,-440.0,0.00019452,2]
[365006010,1749394244300,-1708.26,0.00019452,2]
[365006011,1749394244311,-440.0,0.00019452,2]
[365006012,1749394244320,-440.0,0.00019452,2]
[365006013,1749394244332,-440.0,0.00019452,2]
[365006014,1749394244342,-440.0,0.00019452,2]
[365006015,1749394244352,-440.0,0.00019452,2]
[365006016,1749394244363,-440.0,0.00019452,2]
[365006017,1749394244373,-440.0,0.00019452,2]
[365006018,1749394244384,-440.0,0.00019452,2]
[365006019,1749394244394,-390.88564758,0.00019452,2]
[365006020,1749394244404,-440.0,0.00019452,2]
[365006021,1749394244413,-440.0,0.00019452,2]
[365006022,1749394244423,-547.83,0.00019452,2]
[365006023,1749394244434,-440.0,0.00019452,2]
[365006024,1749394244443,-440.0,0.00019452,2]
[365006025,1749394244454,-440.0,0.00019452,2]
[365006026,1749394244463,-309.44033199,0.00019452,2]
[365006027,1749394244473,-440.0,0.00019452,2]
[365006028,1749394244483,-392.69527002,0.00019452,2]
[365006029,1749394244492,-440.0,0.00019452,2]
[365006030,1749394244502,-440.0,0.00019452,2]
[365006031,1749394244512,-440.0,0.00019452,2]
[365006032,1749394244522,-471.27,0.00019452,2]
[365006033,1749394244531,-430.0,0.00019452,2]
[365006034,1749394244541,-430.0,0.00019452,2]
[365006035,1749394244551,-440.0,0.00019452,2]
[365006036,1749394244560,-440.0,0.00019452,2]
[365006037,1749394244570,-440.0,0.00019452,2]
[365006038,1749394244579,-440.0,0.00019452,2]
[365006039,1749394244589,-506.92,0.00019452,2]
[365006040,1749394244599,-448.33,0.00019452,2]
[365006041,1749394244609,-413.50761634,0.00019452,2]
[365006042,1749394244618,-440.0,0.00019452,2]
[365006043,1749394244629,-440.0,0.00019452,2]
[365006044,1749394244724,-420.0,0.00019452,2]
[365006045,1749394244735,-440.0,0.00019452,2]
[365006046,1749394244745,-440.0,0.00019452,2]
[365006047,1749394244754,-440.0,0.00019452,2]
[365006048,1749394244764,-440.0,0.00019452,2]
[365006049,1749394244774,-440.0,0.00019452,2]
[365006050,1749394244783,-410.0,0.00019452,2]
[365006051,1749394244793,-440.0,0.00019452,2]
[365006052,1749394244803,-440.0,0.00019452,2]
[365006053,1749394244812,-430.0,0.00019452,2]
[365006054,1749394244822,-498.29,0.00019452,2]
[365006055,1749394244832,-440.0,0.00019452,2]
[365006056,1749394244842,-440.0,0.00019452,2]
[365006057,1749394244851,-468.81,0.00019452,2]
[365006058,1749394244861,-440.0,0.00019452,2]
[365006059,1749394244870,-440.0,0.00019452,2]
[365006060,1749394244880,-302.25293673,0.00019452,2]
[365006061,1749394244890,-440.0,0.00019452,2]
[365006062,1749394244900,-431.09839791,0.00019452,2]
[365006063,1749394244910,-400.0,0.00019452,2]
[365006064,1749394244921,-440.0,0.00019452,2]
[365006065,1749394244933,-440.0,0.00019452,2]
[365006066,1749394244944,-440.0,0.00019452,2]
[365006067,1749394244954,-440.0,0.00019452,2]
[365006068,1749394244965,-440.0,0.00019452,2]
[365006069,1749394244975,-464.09902922,0.00019452,2]
[365006070,1749394244985,-410.0,0.00019452,2]
[365006071,1749394244995,-440.0,0.00019452,2]
[365006072,1749394245005,-440.0,0.00019452,2]
[365006073,1749394245014,-436.17437532,0.00019452,2]
[365006074,1749394245024,-440.0,0.00019452,2]
[365006075,1749394245034,-440.0,0.00019452,2]
[365006076,1749394245044,-440.0,0.00019452,2]
[365006077,1749394245056,-540.0,0.00019452,2]
[365006078,1749394245066,-433.2514171,0.00019452,2]
[365006079,1749394245075,-440.0,0.00019452,2]
[365006080,1749394245085,-412.65062192,0.00019452,2]
[365006081,1749394245094,-1207.59,0.00019452,2]
[365006082,1749394245104,-427.18006281,0.00019452,2]
[365006083,1749394245114,-440.0,0.00019452,2]
[365006084,1749394245124,-440.0,0.00019452,2]
[365006085,1749394245134,-433.282712,0.00019452,2]
[365006086,1749394245143,-568.32589295,0.00019452,2]
[365006087,1749394245153,-432.44087722,0.00019452,2]
[365006088,1749394245166,-545.27163844,0.00019452,2]
[365006089,1749394245176,-420.0,0.00019452,2]
[365006090,1749394245186,-430.0,0.00019452,2]
[365006091,1749394245195,-410.0,0.00019452,2]
[365006092,1749394245206,-433.91483587,0.00019452,2]
[365006093,1749394245216,-1037.75,0.00019452,2]
[365006094,1749394245226,-430.0,0.00019452,2]
[365006095,1749394245236,-440.0,0.00019452,2]
[365006096,1749394245247,-440.0,0.00019452,2]
[365006097,1749394245256,-440.0,0.00019452,2]
[365006098,1749394245266,-1656.91,0.00019452,2]
[365006099,1749394245275,-421.29853876,0.00019452,2]
[365006100,1749394245285,-440.0,0.00019452,2]
[365006101,1749394245295,-440.0,0.00019452,2]
[365006102,1749394245305,-424.9661582,0.00019452,2]
[365006103,1749394245315,-440.0,0.00019452,2]
[365006104,1749394245324,-440.0,0.00019452,2]
[365006105,1749394245335,-440.0,0.00019452,2]
[365006106,1749394245346,-440.0,0.00019452,2]
[365006107,1749394245357,-1761.21,0.00019452,2]
[365006108,1749394245366,-423.21185049,0.00019452,2]
[365006109,1749394245376,-398.82708514,0.00019452,2]
[365006110,1749394245386,-440.0,0.00019452,2]
[365006111,1749394245398,-516.79,0.00019452,2]
[365006112,1749394245408,-360.0,0.00019452,2]
[365006113,1749394245417,-440.0,0.00019452,2]
[365006114,1749394245428,-1166.63,0.00019452,2]
[365006115,1749394245438,-440.0,0.00019452,2]
[365006116,1749394245449,-343.1801732,0.00019452,2]
[365006117,1749394245459,-440.0,0.00019452,2]
[365006118,1749394245469,-440.0,0.00019452,2]
[365006119,1749394245478,-440.0,0.00019452,2]
[365006120,1749394245488,-440.0,0.00019452,2]
[365006121,1749394245498,-320.42168222,0.00019452,2]
[365006122,1749394245509,-433.53665206,0.00019452,2]
[365006123,1749394245519,-440.0,0.00019452,2]
[365006124,1749394245528,-440.0,0.00019452,2]
[365006126,1749394245538,-440.0,0.00019452,2]
[365006128,1749394245548,-440.0,0.00019452,2]
[365006129,1749394245558,-440.0,0.00019452,2]
[365006130,1749394245567,-440.0,0.00019452,2]
[365006131,1749394245577,-440.0,0.00019452,2]
[365006132,1749394245587,-440.0,0.00019452,2]
[365006133,1749394245597,-431.37093086,0.00019452,2]
[365006134,1749394245606,-430.0,0.00019452,2]
[365006135,1749394245617,-496.24617768,0.00019452,2]
[365006136,1749394245626,-382.89701531,0.00019452,2]
[365006137,1749394245635,-432.19441621,0.00019452,2]
[365006138,1749394245645,-300.0,0.00019452,2]
[365006139,1749394245654,-440.0,0.00019452,2]
[365006140,1749394245663,-440.0,0.00019452,2]
[365006141,1749394245672,-440.0,0.00019452,2]
[365006142,1749394245682,-440.0,0.00019452,2]
[365006143,1749394245691,-440.0,0.00019452,2]
[365006144,1749394245700,-433.37129632,0.00019452,2]
[365006145,1749394245710,-995.82,0.00019452,2]
[365006146,1749394245720,-126.67053567,0.00019452,2]
[365006153,1749394245859,-313.32946433,0.00019452,2]
[365006155,1749394245869,-440.0,0.00019452,2]
[365006157,1749394245878,-355.81232266,0.00019452,2]
[365006176,1749394246118,-1031.38245891,0.00019166,2]
[365006177,1749394246131,-14968.61754109,0.00019166,2]
[365006178,1749394246140,-6187.18721259,0.00019166,2]
[365006179,1749394246150,-523.32062848,0.00019178,2]
[365006180,1749394246160,-493.75350541,0.00019178,2]
[365006181,1749394246174,-440.0,0.00019178,2]
[365006182,1749394246184,-282.42767734,0.00019452,2]
[365006183,1749394246194,-440.0,0.00019452,2]
[365006184,1749394246203,-440.0,0.00019452,2]
[365006185,1749394246213,-440.0,0.00019452,2]
[365006186,1749394246223,-440.0,0.00019452,2]
[365006187,1749394246233,-1379.33,0.00019452,2]
[365006188,1749394246243,-402.91084818,0.00019452,2]
[365006189,1749394246254,-440.0,0.00019452,2]
[365006190,1749394246264,-440.0,0.00019452,2]
[365006191,1749394246274,-440.0,0.00019452,2]
[365006192,1749394246284,-440.0,0.00019452,2]
[365006194,1749394246293,-431.12636405,0.00019452,2]
[365006196,1749394246303,-400.92573595,0.00019452,2]
[365006198,1749394246312,-432.50110164,0.00019452,2]
[365006200,1749394246321,-440.0,0.00019452,2]
[365006202,1749394246330,-179.96874303,0.00019452,2]
[365006204,1749394246339,-440.0,0.00019452,2]
[365006210,1749394246424,-400.74742679,0.00019452,2]
[365006211,1749394246444,-157.75692255,0.00019452,2]
[365006212,1749394246454,-440.0,0.00019452,2]
[365006213,1749394246464,-440.0,0.00019452,2]
[365006214,1749394246474,-492.02168635,0.00019452,2]
[365006215,1749394246483,-440.0,0.00019452,2]
[365006216,1749394246494,-440.0,0.00019452,2]
[365006217,1749394246503,-285.59405925,0.00019452,2]
[365006218,1749394246513,-449.28771871,0.00019452,2]
[365006219,1749394246522,-373.12071737,0.00019452,2]
[365006220,1749394246532,-420.0,0.00019452,2]
[365006221,1749394246542,-616.33,0.00019452,2]
[365006222,1749394246551,-510.59,0.00019452,2]
[365006223,1749394246561,-246.00288807,0.00019452,2]
[365006224,1749394246570,-440.0,0.00019452,2]
[365006225,1749394246580,-400.0,0.00019452,2]
[365006226,1749394246591,-281.07240354,0.00019452,2]
[365006227,1749394246601,-440.0,0.00019452,2]
[365006228,1749394246610,-350.0,0.00019452,2]
[365006229,1749394246620,-209.42803133,0.00019473,2]
[365006230,1749394246629,-512.79628993,0.00019473,2]
[365006231,1749394246639,-500.0,0.00019473,2]
[365006232,1749394246649,-500.0,0.00019473,2]
[365006233,1749394246659,-219.32670508,0.00019489,2]
[365006234,1749394246669,-916.93885196,0.00019512,2]
[365006235,1749394246678,-277.43,0.00019542,2]
[365006236,1749394246688,-219.32670508,0.00019626,2]
[365006237,1749394246698,-443.44214062,0.00019721,2]
[365006238,1749394246708,-1000.0,0.00019721,2]
[365006239,1749394246719,-500.0,0.00019725,2]
[365006240,1749394246728,-393.8251541,0.00019726,2]
[365006241,1749394246738,-440.0,0.00019726,2]
[365006242,1749394246748,-440.0,0.00019726,2]
[365006243,1749394246758,-417.06361174,0.00019726,2]
[365006244,1749394246768,-440.0,0.00019726,2]
[365006245,1749394246778,-440.0,0.00019726,2]
[365006246,1749394246788,-440.0,0.00019726,2]
[365006247,1749394246797,-430.0,0.00019726,2]
[365006248,1749394246808,-440.0,0.00019726,2]
[365006249,1749394246819,-400.0,0.00019726,2]
[365006250,1749394246831,-410.0,0.00019726,2]
[365006251,1749394246841,-400.0,0.00019726,2]
[365006252,1749394246850,-440.0,0.00019726,2]
[365006253,1749394246859,-440.0,0.00019726,2]
[365006254,1749394246871,-440.0,0.00019726,2]
[365006255,1749394246882,-440.0,0.00019726,2]
[365006256,1749394246893,-440.0,0.00019726,2]
[365006257,1749394246905,-440.0,0.00019726,2]
[365006258,1749394246914,-390.0,0.00019726,2]
[365006259,1749394246924,-410.0,0.00019726,2]
[365006260,1749394246935,-253.85864678,0.00019726,2]
[365006261,1749394246946,-440.0,0.00019726,2]
[365006262,1749394246958,-410.0,0.00019726,2]
[365006263,1749394246968,-440.0,0.00019726,2]
[365006264,1749394246978,-525.48185441,0.00019726,2]
[365006265,1749394246987,-502.03109554,0.00019726,2]
[365006266,1749394246996,-360.19855264,0.00019726,2]
[365006267,1749394247005,-440.0,0.00019726,2]
[365006268,1749394247016,-440.0,0.00019726,2]